[Event "SixDays Budapest GM-B May 2024"]
[Site "Budapest"]
[Date "2024.05.19"]
[Round "6.1"]
[White "Jinan Jomon"]
[Black "Palczert, Matyas"]
[Result "0-1"]
[ECO "A30"]
[WhiteElo "2380"]
[BlackElo "2333"]
[Annotator "RC"]
[PlyCount "66"]
[EventDate "2024.05.15"]
[EventType "tourn"]
[EventCountry "HUN"]
[SourceTitle "playchess.com"]
[Source "ChessBase"]
[SourceQuality "1"]
[TimeControl "40/5400+30:1800+30"]

1. c4 {[%emt 0:00:02]} c5 {[%emt 0:01:10]} 2. Nf3 {[%emt 0:00:41]} Nc6 {[%emt 0:00:09]} 3. e3 {[%emt 0:00:39]} e5 {[%emt 0:00:45]} 4. Nc3 {[%emt 0:01:13]} Nf6 {[%emt 0:00:17]} 5. d4 {[%emt 0:03:38]} e4 {[%emt 0:00:21]} 6. d5 {[%emt 0:00:51]} exf3 {[%emt 0:00:18]} 7. dxc6 {[%emt 0:00:07]} bxc6 {[%emt 0:00:18]} 8. e4 {[%emt 0:00:29]} Qc7 {[%emt 0:00:50]} 9. Qxf3 {[%emt 0:06:34]} Bd6 {[%emt 0:01:10]} 10. g3 {[%emt 0:04:32]} O-O {[%emt 0:02:30]} 11. Bg2 {[%emt 0:00:34]} Ba6 {[%emt 0:05:20]} 12. Qd3 {[%emt 0:01:56]} Be5 {[%emt 0:06:06]} 13. O-O {[%emt 0:05:32]} Rfe8 {[%emt 0:10:03]} 14. Re1 {[%emt 0:15:23]} Rab8 {[%emt 0:08:31]} 15. Rb1 {[%emt 0:04:19]} Rb4 {[%emt 0:20:49]} 16. b3 {[%emt 0:11:39]} Bxc4 {[%emt 0:00:48]} 17. Qc2 {[%emt 0:00:10]} Ba6 {[%emt 0:03:31]} 18. Ba3 {[%emt 0:02:43]} Rbb8 {[%emt 0:02:50]} 19. Bxc5 {[%emt 0:00:47]} d6 {[%emt 0:01:10]} 20. Ba3 {[%emt 0:05:22]} Qa5 {[%emt 0:10:07]} 21. Bb2 {[%emt 0:00:27]} d5 {[%emt 0:05:51]} 22. Red1 {[%emt 0:17:57]} d4 {[%emt 0:02:22]} 23. Na4 {[%emt 0:00:31]} d3 {[%emt 0:01:47]} 24. Qc5 {[%emt 0:00:37]} Qc7 {[%emt 0:04:00]} 25. Bxe5 {[%emt 0:03:44]} Rxe5 {[%emt 0:01:15]} 26. Qc3 {[%emt 0:00:02]} Qd6 {[%emt 0:01:50]} 27. f3 {[%emt 0:03:47]} Bb5 {[%emt 0:02:44]} 28. Bf1 {[%emt 0:04:11]} Rd8 {[%emt 0:03:05]} 29. Rb2 {[%emt 0:03:44]} Rxe4 {[%emt 0:04:17]} 30. Nc5 {[%emt 0:01:56]} Re5 {[%emt 0:00:40]} 31. b4 {[%emt 0:01:13]} Nd5 {[%emt 0:00:19]} 32. Qd2 {[%emt 0:00:33]} Ne3 {[%emt 0:00:17]} 33. Re1 {[%emt 0:00:34]} Nc4 {[%emt 0:00:16]} 0-1

[Event "SixDays Budapest GM-B May 2024"]
[Site "Budapest"]
[Date "2024.05.19"]
[Round "6.2"]
[White "Krishnan, Ritvik"]
[Black "Stefansson, Vignir Vatnar"]
[Result "0-1"]
[ECO "B28"]
[WhiteElo "2298"]
[BlackElo "2463"]
[Annotator "TA"]
[PlyCount "112"]
[EventDate "2024.05.15"]
[EventType "tourn"]
[EventCountry "HUN"]
[SourceTitle "playchess.com"]
[Source "ChessBase"]
[SourceQuality "1"]
[TimeControl "40/5400+30:1800+30"]

{[%evp 13,112,35,30,24,42,4,56,37,36,0,5,-26,-18,-19,-11,-40,0,-29,-4,-57,0,-1,0,-2,-9,-15,0,0,0,0,-14,-50,0,0,-14,0,-22,-16,-29,-12,-15,-48,-37,-64,-68,-202,-169,-177,-175,-157,-170,-156,-183,-183,-186,-185,-187,-185,-174,-273,-285,-416,-392,-377,-321,-300,0,-389,-288,-283,-295,-300,-246,-276,-145,-341,-354,-418,-362,-399,-392,-391,-384,-367,-210,-380,-190,-371,-244,-244,-256,-498,-196,-478,-452,-1160,-503,-1308,-1012,-1750,-1036]} 1. e4 c5 {[%emt 0:01:44]} 2. Nf3 {[%emt 0:00:56]} a6 {[%emt 0:00:10]} 3. Nc3 {[%emt 0:00:53]} b5 {[%emt 0:00:17]} 4. d4 {[%emt 0:00:26]} cxd4 {[%emt 0:00:07]} 5. Nxd4 {[%emt 0:00:09]} e6 {[%emt 0:00:06]} 6. Bd3 {[%emt 0:00:22]} Qb6 {[%emt 0:00:09]} 7. Nf3 {[%emt 0:00:34]} Nc6 {[%emt 0:06:40]} 8. O-O {[%emt 0:00:23]} d6 {[%emt 0:01:48]} 9. Re1 {[%emt 0:13:44]} Be7 {[%emt 0:02:04]} (9... Nf6 $11) 10. a4 $14 {[%emt 0:02:03] White is slightly better.} b4 {[%emt 0:00:53]} 11. Ne2 {[%emt 0:00:35]} Nf6 {[%emt 0:06:55]} 12. h3 {[%emt 0:01:16]} O-O {[%emt 0:00:57]} 13. Be3 {[%emt 0:00:28]} Qc7 {[%emt 0:01:18]} 14. Ned4 {[%emt 0:01:50]} Bb7 {[%emt 0:02:54]} 15. Nb3 {[%emt 0:07:31]} a5 {[%emt 0:03:00]} 16. Nfd2 {[%emt 0:06:38]} (16. Bd2 $11) 16... Nd7 {[%emt 0:04:38]} (16... d5 $15) 17. Bb5 $11 {[%emt 0:02:51]} Rfd8 {[%emt 0:02:56]} 18. Qe2 {[%emt 0:03:42]} Bf6 {[%emt 0:00:49]} 19. Rab1 {[%emt 0:04:39]} Na7 {[%emt 0:03:30]} 20. Nc4 {[%emt 0:11:39]} Nxb5 (20... Bxe4 21. Bxd7 (21. Nbxa5 Bxc2 22. Rbc1 b3 $11) 21... Qxd7 22. Nb6 $14 (22. Nbxa5 Nc8 $11) (22. Bxa7 Qxa7 23. Nbxa5 Bd5 $19)) 21. axb5 {[%emt 0:01:07]} a4 {[%emt 0:03:44]} 22. Nba5 {[%emt 0:02:58]} d5 {[%emt 0:27:05]} (22... Rxa5 $2 23. b6 Qc6 (23... Nxb6 $2 24. Bxb6 Qc6 25. Bxa5 $18) 24. Nxa5 Qxe4 25. Nxb7 Qxb7 26. Qb5 $18) (22... Bxe4 $5 23. b6 Qc8 $16) 23. b6 {[%emt 0:11:26]} Qb8 $36 {[%emt 0:00:24][%mdl 2048] Black has the initiative.} 24. Nxb7 {[%emt 0:00:50]} Qxb7 {[%emt 0:00:11]} 25. exd5 {[%emt 0:00:57]} exd5 {[%emt 0:00:06]} 26. Nd6 {[%emt 0:00:15]} Qc6 {[%emt 0:00:36]} 27. b7 {[%emt 0:01:10]} Rab8 {[%emt 0:00:07]} 28. Bf4 {[%emt 0:05:36]} Nf8 $1 {[%emt 0:03:27][%cal Of8e6]} 29. Qd2 {[%emt 0:07:56]} ({Better is} 29. c4 $15 Rxd6 (29... bxc3 30. bxc3 Ne6 31. Bg3 $11) 30. cxd5) 29... Ne6 {[%emt 0:04:55]} 30. Nxf7 {[%emt 0:02:10]} Kxf7 {[%emt 0:00:55]} 31. Bxb8 {[%emt 0:00:03]} Rxb8 {[%emt 0:00:06]} 32. Qxb4 {[%emt 0:02:15]} Rxb7 {[%emt 0:00:38]} 33. Qg4 {[%emt 0:00:52]} g6 {[%emt 0:02:11]} 34. c3 {[%emt 0:00:26]} Nc5 {[%emt 0:00:30]} 35. Qe2 {[%emt 0:01:00] Wards off Nd3} Kg7 {[%emt 0:02:02]} 36. Red1 {[%emt 0:00:33]} (36. Rbd1 $142) 36... Ne4 $19 {[%emt 0:01:09]} 37. Qe3 {[%emt 0:01:05]} (37. g3 {is a better defense.}) 37... Re7 {[%emt 0:00:24][%cal Re4c3]} 38. Qf3 {[%emt 0:03:02]} Rf7 {[%emt 0:00:57]} 39. Qe3 {[%emt 0:00:57]} Re7 {[%emt 0:00:55][%cal Re4c3] [#] White must now prevent ...Nxc3!} 40. Qf3 {[%emt 0:00:01]} Bh4 {[%emt 0:05:43]} 41. g3 {[%emt 0:30:15]} Bf6 {[%emt 0:30:42][%cal Bh4f6,Bf6e5,Be5d6,Bd6c5][%mdl 32]} 42. h4 {[%emt 0:00:17]} Be5 {[%emt 0:02:12] aiming for ...Rf7.} 43. Qe3 {[%emt 0:00:09]} Nf6 {[%emt 0:01:33] White is weak on the light squares} (43... a3 $19 {Strongly threatening ...Bf6.} 44. h5 Bf6 (44... gxh5 $2 45. bxa3 h4 46. Rb6 $17) 45. h6+ Kf7 46. bxa3 Nxc3 (46... Qxc3 47. Rd3 $17)) 44. Rd3 $2 {[%emt 0:01:28]} (44. Re1 $17) 44... Bd6 {[%emt 0:00:23]} 45. Qf3 {[%emt 0:00:21]} Rf7 {[%emt 0:00:29]} 46. Qe2 {[%emt 0:00:41]} Ne4 {[%emt 0:00:24]} 47. Rf1 {[%emt 0:00:30]} Bc5 {[%emt 0:00:39]} 48. Kg2 {[%emt 0:00:21]} Qc7 {[%emt 0:06:00]} ({Less strong is} 48... Bxf2 49. Rf3 $17) (48... Rxf2+ $142 49. Rxf2 Bxf2) 49. f4 $2 {[%emt 0:01:36]} (49. Rf3) 49... Nf6 {[%emt 0:00:04]} (49... Re7 $142 {[%cal Oe4g3] Threatens to win with ...Nxg3!} 50. f5 Qb7) 50. Qf3 {[%emt 0:00:17]} (50. f5) 50... Qb6 {[%emt 0:00:16]} 51. Rd2 {[%emt 0:00:38]} h5 {[%emt 0:02:25]} 52. Ra1 $2 {[%emt 0:00:07]} (52. Re1 {might work better.}) 52... Qb5 $2 {[%emt 0:01:12]} (52... Re7 {Hoping for ...Re3.} 53. Rxa4 Re3) 53. Kh1 $2 {[%emt 0:00:21]} (53. Re1) 53... Re7 {[%emt 0:00:29] [#] ...Re3 would now be deadly. Black is clearly winning.} 54. Rg2 {[%emt 0:00:46]} (54. f5 $142) 54... Qc4 {[%emt 0:00:49]} (54... Re3 $142 55. Qf1 Qe8) 55. Qd1 {[%emt 0:00:21]} (55. Qf1 $142 Qe4 56. Qb1) 55... Ng4 {[%emt 0:00:27]} 56. Qd2 {[%emt 0:00:32]} Qe4 {[%emt 0:00:09] Weighted Error Value: White=0.73/Black=0.58.  Loses game:     	White=1     	---        Mistake:       	White=10    	Black=7      Inaccurate:     	White=9     	Black=3      OK:         	White=13    	Black=20     Best:        	White=7     	Black=1      Strong:       	---       	Black=1} 0-1

[Event "SixDays Budapest GM-B May 2024"]
[Site "Budapest"]
[Date "2024.05.19"]
[Round "6.3"]
[White "Lamard, Guillaume"]
[Black "Kuru, Atilla"]
[Result "1-0"]
[ECO "A06"]
[WhiteElo "2504"]
[BlackElo "2313"]
[Annotator "TA"]
[PlyCount "141"]
[EventDate "2024.05.15"]
[EventType "tourn"]
[EventCountry "HUN"]
[SourceTitle "playchess.com"]
[Source "ChessBase"]
[SourceQuality "1"]
[TimeControl "40/5400+30:1800+30"]

{[%evp 11,141,18,24,3,46,8,19,16,12,7,31,24,29,32,37,20,23,27,28,25,31,11,20,0,68,22,18,10,34,26,20,0,0,0,6,0,26,0,0,0,44,39,388,381,409,420,431,427,418,120,122,117,119,116,124,109,130,131,234,163,174,109,159,137,203,200,227,204,202,185,225,236,234,219,255,246,267,227,295,294,491,320,308,291,287,276,566,297,580,146,146,142,281,0,675,235,539,532,896,699,29982,29983,29985,182,182,182,182,182,269,182,324,324,329,329,29979,29980,29980,29981,29981,29982,29982,29983,29983,29984,29984,29981,29993,29980,29983,29984,29993,29994]} 1. Nf3 {[%emt 0:00:03]} d5 {[%emt 0:00:07]} 2. g3 {[%emt 0:00:15]} Nc6 {[%emt 0:00:05]} 3. d4 {[%emt 0:00:41]} Bf5 {[%emt 0:00:05]} 4. Bg2 {[%emt 0:01:13]} Nb4 {[%emt 0:01:20]} 5. Na3 {[%emt 0:00:51]} e6 {[%emt 0:00:18]} 6. O-O {[%emt 0:01:36]} Nf6 {[%emt 0:02:26]} 7. Ne5 {[%emt 0:09:42]} Bd6 {[%emt 0:13:34]} 8. Bf4 {[%emt 0:11:26]} O-O {[%emt 0:16:20]} 9. c3 {[%emt 0:12:21][%cal Bc2c3,Bc3c4][%mdl 32] The position is equal.} Nc6 {[%emt 0:00:31]} 10. c4 {[%emt 0:00:16]} Bxe5 {[%emt 0:19:43]} 11. dxe5 {[%emt 0:00:20]} Ne4 {[%emt 0:08:14]} 12. f3 {[%emt 0:19:45]} Nc5 {[%emt 0:00:17]} 13. g4 {[%emt 0:00:39] cxd5 would now be deadly.} Bg6 {[%emt 0:00:09]} 14. cxd5 {[%emt 0:03:56]} exd5 {[%emt 0:05:44]} 15. Rc1 {[%emt 0:00:15][%cal Ba1c1,Bc1c5,Bc5d5,Bd5d6][%mdl 32]} Qe7 {[%emt 0:00:55]} 16. Nb5 {[%emt 0:12:08] Threatens to win with Nc3.} Rad8 {[%emt 0:01:58][%cal Oc5e6]} 17. Bg3 {[%emt 0:01:32]} h5 {[%emt 0:01:42]} ({Better is} 17... d4 $11) 18. gxh5 {[%emt 0:00:44]} (18. Qe1 $14 {is more appropriate.}) 18... Bxh5 $11 {[%emt 0:00:50][%cal Od5d4] [#]} 19. Nxc7 $1 {[%emt 0:02:27]} Qxc7 {[%emt 0:01:23]} (19... d4 $5) 20. Rxc5 {[%emt 0:00:13]} Qb6 {[%emt 0:00:04]} 21. Bf2 {[%emt 0:01:18]} Qxb2 {[%emt 0:00:06]} 22. Rxd5 {[%emt 0:01:24]} Qxa2 {[%emt 0:00:07]} 23. Rd6 {[%emt 0:01:23]} Qb2 {[%emt 0:00:47]} 24. f4 {[%emt 0:02:39][%cal Of1e1]} Bxe2 {[%emt 0:05:56]} 25. Qb1 {[%emt 0:00:21]} Qa3 {[%emt 0:02:42]} 26. Re1 {[%emt 0:00:23] Hoping for Rxd8.} Ba6 $2 {[%emt 0:01:05][%mdl 8192]} ({Black should try} 26... Qa6 $1 $14) 27. Re3 $1 $18 {[%emt 0:02:58]} Qb4 {[%emt 0:01:40] [#]} 28. Rb3 {[%emt 0:01:56]} Qxf4 {[%emt 0:00:23] [#]} 29. Rh3 $1 {[%emt 0:00:02][%csl Gh3][%cal Rb1h7] Active counter play!} Rfe8 {[%emt 0:01:30]} 30. Bc5 $2 {[%emt 0:07:58] This pair of bishops is nice.} (30. Qh7+ Kf8 31. Qh8+ Ke7 32. Qh4+ Qxh4 33. Bxh4+ f6 34. Bxc6 bxc6 $16) (30. Rd7 $18 {is the precise move to win.} Qxf2+ (30... Rxd7 31. Qh7+ Kf8 32. Bc5+) 31. Kxf2 Rxd7 32. Qh7+ Kf8 33. Qh8+ Ke7 34. Qh4+ (34. Qxg7 Kd8 $18) 34... Kf8 35. Bxc6 bxc6 36. Qa4 (36. Qh8+ Ke7 $18)) 30... Bd3 $16 {[%emt 0:02:36]} 31. Rhxd3 {[%emt 0:01:08]} Qxe5 {[%emt 0:00:18]} 32. R3d5 $40 {[%emt 0:00:47][%cal Bd3d5,Bd5c5,Bc5c8,Bc8a8,Ba8a5,Ba5e5][%mdl 160] White is out for blood.} (32. Bxc6 $2 Qxc5+ 33. Kh1 Rxd6 $19) 32... Qc3 {[%emt 0:00:17]} 33. Rxd8 {[%emt 0:00:37]} (33. Qxb7 $2 Rxd6 34. h3 Rxd5 $19) 33... Nxd8 {[%emt 0:00:45]} 34. Bf2 {[%emt 0:00:37] Wards off Re1+} (34. Bxa7 $2 Re1+ $19) 34... a5 {[%emt 0:04:09]} (34... Ne6 $16 {was necessary.} 35. Rd3 (35. Bxa7 Nf4 $11) 35... Qa5) 35. Rc5 {[%emt 0:01:21]} Qd2 {[%emt 0:00:39]} 36. Qc1 {[%emt 0:01:28]} (36. Rh5 $18 {Intending Qh7+ and mate.} g6 37. Rh3) 36... Qb4 {[%emt 0:02:03]} ({Black should play} 36... Qxc1+ 37. Rxc1 Nc6) 37. Rc8 {[%emt 0:00:30]} Qg4 {[%emt 0:00:51] Repels Qg5} (37... Qa4 $16 {might work better.} 38. Qd2 Ne6 39. Rxe8+ (39. Bxb7 Rxc8 40. Bxc8 Qg4+ 41. Bg3 a4 $16) 39... Qxe8) 38. Ra8 $18 {[%emt 0:00:25][%cal Oc1d2] aiming for Qd2!} Qa4 {[%emt 0:01:24]} 39. Qd2 {[%emt 0:00:40]} Ne6 {[%emt 0:00:30]} 40. Rxa5 {[%emt 0:00:45]} Qg4 {[%emt 0:00:01]} 41. h3 {[%emt 0:30:41]} Qg6 {[%emt 0:30:40]} 42. Kh2 {[%emt 0:00:30]} Qf6 {[%emt 0:00:48]} 43. Bg3 {[%emt 0:00:27] Repels Nf4} (43. Bxb7 Rb8 44. Be4 g6 $18) 43... Nd4 {[%emt 0:00:23]} 44. Qf4 {[%emt 0:00:21]} (44. Bxb7 $2 Re2+ $19) 44... Qb6 {[%emt 0:00:02][%cal Od4e2] ...Ne2! is the strong threat.} 45. Re5 {[%emt 0:00:17]} Rd8 {[%emt 0:01:18]} (45... Ne6 46. Qh4 Qd8 47. Bxb7 Qxh4 48. Bxh4 Kf8) 46. Re7 {[%emt 0:00:09]} Qg6 {[%emt 0:00:16]} 47. Qc7 {[%emt 0:00:46]} (47. Rxb7 Ne2 48. Qg4 Qxg4 49. hxg4 Nxg3 $16) 47... Ra8 {[%emt 0:00:39]} 48. Qxb7 {[%emt 0:01:35]} Ra2 {[%emt 0:00:04]} (48... Rf8 49. Re5 Qc2) 49. Re5 {[%emt 0:00:32]} Rd2 $2 {[%emt 0:02:01]} (49... Qc6 50. Qxc6 Nxc6) 50. Qa8+ $2 {[%emt 0:00:25]} (50. Qd5 $18) 50... Kh7 $16 {[%emt 0:00:03]} 51. Qd5 {[%emt 0:00:24]} f5 {[%emt 0:00:13]} (51... Nf5 $16 {is a better defense.} 52. Qf3 (52. Qxd2 Qxg3+ 53. Kg1 Qxe5 $17) (52. Rxf5 Rxd5 53. Rxd5 f5 $16) 52... Nxg3) 52. Bf4 $2 {[%emt 0:00:37]} (52. Re3 $18) 52... Rd3 $2 {[%emt 0:00:28][%mdl 8192]} (52... Rf2 $11 53. Bg3 (53. Qxd4 $2 Qxg2#) (53. Bc1 Nf3+ 54. Qxf3 Rxf3 $14) 53... Nf3+ 54. Qxf3 Rxf3 55. Bxf3 Qf6) 53. Qa8 $2 {[%emt 0:00:35]} (53. Be3) 53... Ne6 $2 {[%emt 0:00:28]} (53... Qb6 54. Re3 Rxe3 55. Bxe3 Qd6+ 56. Kh1 Nc2) 54. Be3 $18 {[%emt 0:00:29] Strongly threatening Bd5.} Rc3 {[%emt 0:01:25]} 55. Qd5 {[%emt 0:00:33]} Rc2 {[%emt 0:00:35]} 56. Rxe6 {[%emt 0:00:29]} Rxg2+ {[%emt 0:00:04]} 57. Qxg2 $2 {[%emt 0:00:02]} (57. Kh1 $1 {mates} Qxe6 58. Qxe6 Rb2 59. Qxf5+ Kg8 60. Bd4 Rd2 61. Qc8+ Kh7 62. Qg4 (62. Qf5+ Kg8 63. Qc8+ Kh7 64. Qg4 Rxd4 65. Qxd4 Kh8 66. Qf4 Kg8)) 57... Qxe6 {[%emt 0:00:03]} 58. Qf3 {[%emt 0:00:14]} Qf6 {[%emt 0:00:25]} 59. Qf4 {[%emt 0:00:15]} Qb2+ {[%emt 0:00:28]} (59... Kg8 $142 60. Bd4 Qe6) 60. Kg3 {[%emt 0:00:06]} Qb1 {[%emt 0:00:11]} (60... Qb5 {was worth a try.} 61. Qf2 Qe5+ 62. Bf4 Qf6) 61. Kh4 {[%emt 0:00:53]} Qd3 {[%emt 0:01:17]} 62. Bd4 {[%emt 0:00:13]} Kg8 $2 {[%emt 0:01:36]} (62... Qb1 $18 63. Kg5 Qb4 64. Qxf5+ Kh8) 63. Qe5 {[%emt 0:00:52][%csl Gd4][%cal Re5g7] White mates.} Kf7 {[%emt 0:00:01]} 64. Qxg7+ Ke6 65. Qe5+ {[%emt 0:00:17]} Kf7 {[%emt 0:00:31]} 66. Qd5+ {[%emt 0:00:13]} Ke8 {[%emt 0:00:04]} 67. Qe6+ {[%emt 0:00:40]} Kf8 {[%emt 0:00:01]} 68. Qe3 {[%emt 0:01:06]} Qb5 {[%emt 0:01:05]} 69. Kg5 {[%emt 0:00:58]} Qd7 {[%emt 0:00:43]} 70. Qe5 {[%emt 0:00:17]} Qb7 {[%emt 0:00:23]} 71. Qh8+ {[%emt 0:00:05] Weighted Error Value: White=0.62/Black=0.70.  Loses game:     	---       	Black=2      Missed win:     	White=3     	---        Mistake:       	White=3     	Black=12     Inaccurate:     	White=5     	Black=5      OK:         	White=17    	Black=14     Best:        	White=3     	Black=4      Strong:       	White=2     	---} 1-0

[Event "SixDays Budapest GM-B May 2024"]
[Site "Budapest"]
[Date "2024.05.19"]
[Round "6.4"]
[White "Borgaonkar Akshay"]
[Black "Fodor, Tamas Jr."]
[Result "1-0"]
[ECO "C95"]
[WhiteElo "2374"]
[BlackElo "2486"]
[Annotator "RC"]
[PlyCount "161"]
[EventDate "2024.05.15"]
[EventType "tourn"]
[EventCountry "HUN"]
[SourceTitle "playchess.com"]
[Source "ChessBase"]
[SourceQuality "1"]
[TimeControl "40/5400+30:1800+30"]

1. e4 {[%emt 0:00:05]} e5 {[%emt 0:00:08]} 2. Nf3 {[%emt 0:00:07]} Nc6 {[%emt 0:00:06]} 3. Bb5 {[%emt 0:00:06]} a6 {[%emt 0:00:05]} 4. Ba4 {[%emt 0:00:04]} Nf6 {[%emt 0:00:07]} 5. O-O {[%emt 0:00:07]} Be7 {[%emt 0:01:55]} 6. Re1 {[%emt 0:00:07]} b5 {[%emt 0:00:29]} 7. Bb3 {[%emt 0:00:02]} d6 {[%emt 0:00:18]} 8. c3 {[%emt 0:00:08]} O-O {[%emt 0:00:33]} 9. h3 {[%emt 0:00:05]} Nb8 {[%emt 0:02:10]} 10. d4 {[%emt 0:00:18]} Nbd7 {[%emt 0:00:05]} 11. Nbd2 {[%emt 0:00:45]} c5 {[%emt 0:01:25]} 12. Nf1 {[%emt 0:10:14]} Re8 {[%emt 0:02:05]} 13. Ng3 {[%emt 0:02:40]} Bf8 {[%emt 0:00:28]} 14. Bc2 {[%emt 0:02:59]} g6 {[%emt 0:02:43]} 15. Bg5 {[%emt 0:06:24]} Bg7 {[%emt 0:06:52]} 16. d5 {[%emt 0:05:13]} c4 {[%emt 0:01:39]} 17. Qd2 {[%emt 0:02:10]} Qc7 {[%emt 0:02:19]} 18. Rf1 {[%emt 0:06:40]} Rb8 {[%emt 0:05:25]} 19. Bh6 {[%emt 0:08:43]} Bh8 {[%emt 0:00:14]} 20. Nh2 {[%emt 0:04:38]} Bg7 {[%emt 0:12:49]} 21. Kh1 {[%emt 0:05:49]} Bxh6 {[%emt 0:01:36]} 22. Qxh6 {[%emt 0:00:02]} Kh8 {[%emt 0:00:12]} 23. f4 {[%emt 0:07:17]} Ng8 {[%emt 0:01:09]} 24. Qg5 {[%emt 0:02:46]} f6 {[%emt 0:06:23]} 25. Qh4 {[%emt 0:00:53]} exf4 {[%emt 0:01:58]} 26. Qxf4 {[%emt 0:00:17]} Ne5 {[%emt 0:00:16]} 27. Nf3 {[%emt 0:00:27]} Qe7 {[%emt 0:01:43]} 28. Ne2 {[%emt 0:02:18]} Bd7 {[%emt 0:02:37]} 29. Qd2 {[%emt 0:01:46]} Kg7 {[%emt 0:01:11]} 30. Nfd4 {[%emt 0:03:01]} h5 {[%emt 0:10:17]} 31. Nf4 {[%emt 0:00:48]} Qf7 {[%emt 0:00:42]} 32. a4 {[%emt 0:04:50]} g5 {[%emt 0:00:06]} 33. Nfe6+ {[%emt 0:00:20]} Bxe6 {[%emt 0:00:21]} 34. Nxe6+ {[%emt 0:00:42]} Rxe6 {[%emt 0:00:05]} 35. dxe6 {[%emt 0:00:05]} Qxe6 {[%emt 0:00:04]} 36. axb5 {[%emt 0:00:12]} axb5 {[%emt 0:00:07]} 37. Ra6 {[%emt 0:01:09]} Nf7 {[%emt 0:01:38]} 38. Qe2 {[%emt 0:04:05]} Ne7 {[%emt 0:02:04]} 39. e5 {[%emt 0:03:12]} Qxe5 {[%emt 0:02:40]} 40. Qxe5 {[%emt 0:00:46]} Nxe5 {[%emt 0:01:53]} 41. Rxd6 {[%emt 0:30:07]} Rf8 {[%emt 0:30:13]} 42. Rb6 {[%emt 0:00:30]} Nd5 {[%emt 0:00:43]} 43. Rxb5 {[%emt 0:01:31]} Ne3 {[%emt 0:00:07]} 44. Rb7+ {[%emt 0:00:05]} Kg8 {[%emt 0:00:29]} 45. Bh7+ {[%emt 0:00:24]} Kh8 {[%emt 0:00:05]} 46. Re1 {[%emt 0:00:13]} Nd5 {[%emt 0:00:13]} 47. Be4 {[%emt 0:00:24]} Nf4 {[%emt 0:00:18]} 48. Ra1 {[%emt 0:00:13]} g4 {[%emt 0:00:36]} 49. Raa7 {[%emt 0:03:30]} Rd8 {[%emt 0:00:06]} 50. Kh2 {[%emt 0:00:47]} gxh3 {[%emt 0:02:38]} 51. gxh3 {[%emt 0:00:15]} h4 {[%emt 0:00:33]} 52. Rh7+ {[%emt 0:01:08]} Kg8 {[%emt 0:00:05]} 53. Rag7+ {[%emt 0:00:15]} Kf8 {[%emt 0:00:15]} 54. Rh8+ {[%emt 0:00:07]} Kxg7 {[%emt 0:00:04]} 55. Rxd8 {[%emt 0:00:03]} Kf7 {[%emt 0:02:11]} 56. Rh8 {[%emt 0:01:43]} Nfd3 {[%emt 0:01:31]} 57. Bd5+ {[%emt 0:01:02]} Kg7 {[%emt 0:00:49]} 58. Rxh4 {[%emt 0:02:21]} Nxb2 {[%emt 0:00:05]} 59. Kg3 {[%emt 0:00:27]} Kg6 {[%emt 0:00:13]} 60. Rd4 {[%emt 0:00:48]} Na4 {[%emt 0:02:12]} 61. Bxc4 {[%emt 0:00:18]} Nxc3 {[%emt 0:00:03]} 62. Bf1 {[%emt 0:01:05]} Kf5 {[%emt 0:00:21]} 63. Kf2 {[%emt 0:01:35]} Ne4+ {[%emt 0:00:27]} 64. Ke3 {[%emt 0:00:11]} Ng3 {[%emt 0:00:24]} 65. Bb5 {[%emt 0:01:18]} Kg5 {[%emt 0:00:40]} 66. Kf2 {[%emt 0:01:49]} Nf5 {[%emt 0:00:09]} 67. Ra4 {[%emt 0:00:10]} Kh6 {[%emt 0:00:20]} 68. Be2 {[%emt 0:01:00]} Kg5 {[%emt 0:00:14]} 69. Ra8 {[%emt 0:00:36]} Nh6 {[%emt 0:00:41]} 70. Bd1 {[%emt 0:00:57]} Nd3+ {[%emt 0:02:25]} 71. Kg2 {[%emt 0:00:34]} Ne5 {[%emt 0:00:33]} 72. Bc2 {[%emt 0:00:11]} f5 {[%emt 0:00:10]} 73. Ra5 {[%emt 0:00:35]} Nc6 {[%emt 0:06:46]} 74. Ra6 {[%emt 0:01:43]} Nb4 {[%emt 0:03:48]} 75. h4+ {[%emt 0:00:07]} Kh5 {[%emt 0:00:19]} 76. Bd1+ {[%emt 0:00:06]} Ng4 {[%emt 0:00:03]} 77. Bxg4+ {[%emt 0:01:01]} fxg4 {[%emt 0:00:07]} 78. Ra4 {[%emt 0:00:12]} Nc2 {[%emt 0:01:32]} 79. Kg3 {[%emt 0:00:04]} Ne3 {[%emt 0:00:05]} 80. Ra5+ {[%emt 0:00:03]} Kh6 {[%emt 0:00:16]} 81. Re5 {[%emt 0:00:14]} 1-0